bitfinex/quotes_SOLUSD_20250204
["timestamp","ask_amount","ask_price","bid_price","bid_amount"]
[1738680247671,37.81113247,214.97,214.88,37.81113247]
[1738680247877,37.81113247,214.9,214.82,0.063]
[1738680248054,37.81113247,214.86,214.82,0.063]
[1738680248250,0.52234358,214.85,214.82,0.063]
[1738680248507,0.12549,214.83,214.82,0.063]
[1738680248656,5.30263358,214.83,214.82,0.063]
[1738680248854,38.33347605,214.84,214.82,0.063]
[1738680249047,4.6548,214.83,214.82,0.063]
[1738680249250,42.98817605,214.84,214.82,0.063]
[1738680249576,37.93662247,214.83,214.82,0.063]
[1738680249765,0.12549,214.83,214.82,0.0001]
[1738680251184,38.06211247,214.83,214.82,0.0001]
[1738680251870,0.12549,214.83,214.82,0.0001]
[1738680252490,38.06211247,214.83,214.82,0.0001]
[1738680253101,37.93662247,214.83,214.82,0.0001]
[1738680253401,38.06211247,214.83,214.82,0.0001]
[1738680253870,39.06211247,214.83,214.82,0.0001]
[1738680254072,0.12549,214.83,214.82,0.0001]
[1738680254473,0.25098,214.83,214.82,0.0001]
[1738680254670,0.25098,214.75,214.72,0.063]
[1738680254898,37.93662247,214.73,214.72,0.0001]
[1738680255281,38.06211247,214.73,214.72,0.0001]
[1738680255480,39.06211247,214.73,214.72,0.0001]
[1738680255693,76.87324494,214.73,214.72,0.0001]
[1738680256015,77.39558852,214.73,214.72,0.0001]
[1738680256201,38.58445605,214.73,214.72,0.0001]
[1738680256384,38.45896605,214.73,214.72,0.0001]
[1738680256899,81.05258852,214.73,214.72,0.0001]
[1738680257407,43.24145605,214.73,214.72,0.0001]
[1738680257588,43.11596605,214.73,214.72,0.0001]
[1738680258103,81.05258852,214.73,214.72,0.0001]
[1738680258274,43.11596605,214.73,214.72,0.0001]
[1738680258687,80.92709852,214.73,214.72,0.0001]
[1738680258892,81.92709852,214.73,214.72,0.0001]
[1738680259176,80.92709852,214.73,214.72,0.0001]
[1738680259380,43.11596605,214.73,214.72,0.0001]
[1738680259600,42.99047605,214.73,214.72,0.0001]
[1738680259815,5.17934358,214.73,214.72,0.0001]
[1738680260012,0.52234358,214.76,214.72,0.0001]
[1738680260215,55.24,214.77,214.75,37.81113247]
[1738680260510,55.24,214.77,214.73,37.81113247]
[1738680260883,55.24,214.77,214.76,13.41184853]
[1738680261079,55.24,214.77,214.75,37.81113247]
[1738680261283,55.24,214.77,214.73,37.81113247]
[1738680261506,55.24,214.77,214.72,0.0001]
[1738680261507,55.24,214.77,214.75,37.81113247]
[1738680261681,55.24,214.77,214.72,0.0001]
[1738680262106,55.24,214.77,214.72,13.41194853]
[1738680262306,55.24,214.77,214.75,37.93662247]
[1738680262515,0.52234358,214.87,214.77,0.12549]
[1738680262688,0.52234358,214.92,214.85,37.81113247]
[1738680262888,37.81113247,214.93,214.85,37.81113247]
[1738680263208,37.81113247,214.91,214.83,37.81113247]
[1738680263410,38.33347605,214.93,214.85,37.81113247]
[1738680263608,55.28,214.98,214.85,37.81113247]
[1738680263609,42.98527605,214.97,214.89,37.93662247]
[1738680263779,55.28,214.98,214.95,37.81113247]
[1738680263984,18.621156,215.06,214.98,0.25098]
[1738680264182,0.52234358,215.07,215.02,37.81113247]
[1738680264402,37.81113247,215.05,214.97,37.81113247]
[1738680264624,0.03,215.12,214.98,0.25098]
[1738680264915,0.03,215.12,214.98,4.90248]
[1738680265089,0.03,215.12,215.0,0.25098]
[1738680265602,37.81113247,215.07,214.99,37.81113247]
[1738680265802,37.81113247,215.07,215.01,37.81113247]
[1738680265803,0.52234358,215.07,215.01,37.81113247]
[1738680266001,0.03,215.12,215.06,13.66282853]
[1738680266205,0.03,215.12,215.09,37.81113247]
[1738680266411,0.03,215.12,214.94,43.16098542]
[1738680266612,0.12549,215.1,214.88,24.2969]
[1738680266916,0.52234358,215.09,214.93,14.78831853]
[1738680267117,5.17164358,215.09,214.93,13.66282853]
[1738680267292,0.25098,215.08,214.93,0.12549]
[1738680267495,37.81113247,215.0,214.93,37.81113247]
[1738680267714,37.81113247,215.02,214.94,13.41184853]
[1738680267913,37.81113247,215.02,214.91,0.12549]
[1738680267914,37.81113247,215.06,214.97,38.06211247]
[1738680268212,38.33347605,215.08,215.02,13.41184853]
[1738680268394,38.33347605,215.08,214.97,37.81113247]
[1738680268395,0.12549,215.05,214.97,37.81113247]
[1738680268716,37.81113247,215.02,214.93,37.81113247]
[1738680268906,4.6509,215.01,214.93,37.81113247]
[1738680269111,37.81113247,215.0,214.93,37.81113247]
[1738680269411,0.12549,215.09,214.97,37.81113247]
[1738680269412,37.81113247,215.06,214.97,37.81113247]
[1738680269620,37.81113247,215.08,214.99,37.81113247]
[1738680269924,0.52234358,215.09,215.01,0.12549]
[1738680270105,37.81113247,215.04,214.97,37.81113247]
[1738680270300,37.81113247,215.06,214.96,37.81113247]
[1738680270491,37.81113247,215.04,214.97,13.53733853]
[1738680271047,37.81113247,215.06,214.98,37.81113247]
[1738680271214,37.81113247,215.0,214.88,12.663]
[1738680271400,37.81113247,214.98,214.9,37.81113247]
[1738680271598,37.81113247,214.94,214.86,37.81113247]
[1738680271798,38.45896605,214.96,214.86,37.81113247]
[1738680272020,37.81113247,214.94,214.84,37.81113247]
[1738680272211,37.81113247,214.91,214.84,37.81113247]
[1738680272519,37.81113247,214.89,214.8,37.81113247]
[1738680272699,37.81113247,214.91,214.82,37.81113247]
[1738680272900,37.81113247,214.91,214.74,4.6567]
[1738680272901,0.52234358,214.9,214.84,37.81113247]
[1738680273209,37.81113247,214.96,214.88,37.81113247]
[1738680273509,6.06,214.99,214.91,13.41184853]
[1738680273709,6.06,214.99,214.95,37.81113247]
[1738680273897,10.7114,214.99,214.95,37.81113247]
[1738680274216,37.81113247,214.96,214.87,37.81113247]
[1738680274419,37.81113247,214.92,214.82,37.81113247]
[1738680274598,37.81113247,214.96,214.88,37.81113247]
[1738680274800,37.81113247,214.94,214.87,13.66282853]
[1738680275000,17.6884,214.99,214.9,37.81113247]
[1738680275001,37.81113247,214.98,214.9,37.81113247]
[1738680275325,4.6517,214.98,214.91,13.41184853]
[1738680275523,4.6517,214.98,214.92,0.25098]
[1738680275715,6.06,214.99,214.92,38.06211247]
[1738680276028,6.06,214.99,214.87,4.6539]
[1738680276029,37.81113247,215.1,214.99,13.66282853]
[1738680276198,0.52234358,215.09,215.03,13.41184853]
[1738680276404,37.81113247,215.1,215.0,37.81113247]
[1738680276600,0.12549,215.07,215.0,37.81113247]
[1738680276926,4.6505,215.03,214.94,37.81113247]
[1738680277125,4.6499,215.06,215.0,37.81113247]
[1738680277336,37.81113247,215.06,214.98,37.81113247]
[1738680277646,0.12549,215.01,214.93,37.81113247]
[1738680277837,0.12549,215.01,214.83,49.44793247]
[1738680277838,0.12549,214.99,214.91,37.81113247]
[1738680278136,16.3031,215.08,214.95,13.66282853]
[1738680278137,37.81113247,215.02,214.95,13.66282853]
[1738680278434,37.81113247,215.02,214.94,37.81113247]
[1738680278435,42.49073247,215.08,215.0,0.25098]
[1738680278938,42.49073247,215.08,215.05,13.41184853]
[1738680278939,0.03,215.08,215.05,13.41184853]
[1738680279617,0.03,215.08,215.03,13.66282853]
[1738680280320,0.03,215.08,215.07,13.41184853]
[1738680280531,0.03,215.08,215.07,13.66282853]
[1738680280907,0.03,215.08,215.07,18.31242853]
[1738680281146,0.03,215.08,215.07,18.43791853]
[1738680281313,0.03,215.12,215.11,13.66282853]
[1738680281515,55.28,215.22,215.14,20.0]
[1738680281715,55.28,215.22,215.21,51.473961]
[1738680281923,0.03,215.25,215.23,0.25098]
[1738680282240,0.03,215.25,215.24,51.473961]
[1738680282544,0.03,215.34,215.27,20.0]
[1738680282747,0.03,215.34,215.33,51.473961]
[1738680282948,0.03,215.34,215.33,51.222981]
[1738680283116,0.03,215.34,215.33,37.81113247]
[1738680283630,0.03,215.34,215.33,51.473961]
[1738680284836,0.03,215.34,215.33,37.81113247]
[1738680285029,0.03,215.34,215.33,51.348471]
[1738680285342,0.03,215.34,215.33,51.473961]
[1738680285644,0.03,215.34,215.33,37.81113247]
[1738680285827,0.03,215.34,215.29,37.81113247]
[1738680286043,0.03,215.34,215.27,37.81113247]
[1738680286232,0.03,215.34,215.33,51.348471]
[1738680286844,0.03,215.34,215.33,51.473961]
[1738680287757,0.03,215.34,215.33,51.348471]
[1738680288235,0.03,215.34,215.31,37.81113247]
[1738680288420,0.03,215.34,215.29,37.81113247]
[1738680288720,0.03,215.34,215.31,37.81113247]
[1738680289948,0.03,215.34,215.29,37.81113247]
[1738680290145,0.03,215.34,215.27,37.81113247]
[1738680290333,37.84113247,215.34,215.27,37.81113247]
[1738680290768,0.03,215.34,215.29,37.81113247]
[1738680291161,0.03,215.34,215.31,37.81113247]
[1738680292045,0.03,215.34,215.27,37.81113247]
[1738680292459,0.03,215.34,215.28,0.12549]
[1738680292667,37.81113247,215.33,215.25,51.222981]
[1738680293051,4.6442,215.32,215.25,37.81113247]
[1738680293348,37.81113247,215.27,215.19,37.81113247]
[1738680293570,37.81113247,215.25,215.17,37.81113247]
[1738680293771,37.81113247,215.29,215.21,37.81113247]
[1738680293936,16.2548,215.32,215.26,0.12549]
[1738680293937,4.6442,215.32,215.26,0.12549]
[1738680294140,0.52234358,215.32,215.25,37.81113247]
[1738680294460,37.81113247,215.31,215.23,37.81113247]
[1738680294655,0.52234358,215.3,215.23,37.81113247]
[1738680294873,38.33347605,215.31,215.23,37.81113247]
[1738680295241,4.6446,215.3,215.21,37.81113247]
[1738680295539,38.33347605,215.29,215.21,37.81113247]
[1738680295938,4.6444,215.32,215.25,37.81113247]
[1738680296163,0.03,215.34,215.29,37.81113247]
[1738680296353,0.03,215.34,215.33,37.93662247]
[1738680296556,0.03,215.34,215.31,37.81113247]
[1738680296948,37.81113247,215.33,215.25,37.81113247]
[1738680297147,0.03,215.34,215.27,37.81113247]
[1738680297837,0.03,215.34,215.25,18.05754853]
[1738680297838,0.03,215.34,215.29,37.81113247]
[1738680298042,0.03,215.34,215.25,13.53733853]
[1738680298043,0.03,215.34,215.27,37.81113247]
[1738680298253,37.81113247,215.32,215.25,37.81113247]
[1738680298449,0.03,215.34,215.28,0.12549]
[1738680298651,0.03,215.34,215.3,0.12549]
[1738680298858,0.03,215.34,215.29,37.81113247]
[1738680299071,0.03,215.34,215.17,1.063]
[1738680299072,37.81113247,215.33,215.25,37.81113247]
[1738680299235,37.81113247,215.31,215.23,37.81113247]
[1738680299442,37.81113247,215.29,215.19,37.81113247]
[1738680299744,37.81113247,215.25,215.17,37.87413247]
[1738680299946,0.52234358,215.24,215.17,37.87413247]
[1738680300142,37.81113247,215.21,215.17,0.063]
[1738680300356,0.52234358,215.24,215.17,0.063]
[1738680300357,38.33347605,215.27,215.19,37.81113247]
[1738680300567,5.78,215.3,215.25,37.81113247]
[1738680300740,4.6739,215.34,215.27,37.81113247]
[1738680300953,0.12549,215.32,215.22,37.81113247]
[1738680301151,0.25098,215.3,215.17,0.063]
[1738680301350,42.45713247,215.24,215.17,0.063]
[1738680301870,1.12549,215.33,215.17,0.063]
[1738680301871,0.03,215.34,215.22,0.12549]
[1738680302041,0.03,215.34,215.31,37.81113247]
[1738680302243,0.03,215.34,215.29,37.81113247]
[1738680302466,0.03,215.34,215.17,1.75964002]
[1738680302467,0.03,215.34,215.31,37.81113247]
[1738680303065,0.03,215.34,215.29,37.81113247]
[1738680303377,42.48493247,215.34,215.25,37.81113247]
[1738680303547,37.81113247,215.31,215.23,37.81113247]
[1738680303870,4.6738,215.34,215.23,37.81113247]
[1738680303871,4.6738,215.34,215.28,0.12549]
[1738680304052,4.6738,215.34,215.21,0.12549]
[1738680304053,0.03,215.34,215.31,37.81113247]
[1738680304245,0.03,215.34,215.19,0.12549]
[1738680304246,0.03,215.34,215.33,37.81113247]
[1738680304449,0.03,215.34,215.33,51.473961]
[1738680304974,0.03,215.34,215.33,37.81113247]
[1738680305562,0.03,215.34,215.33,51.473961]
[1738680306248,0.03,215.34,215.3,37.81113247]
[1738680306449,0.03,215.34,215.32,37.81113247]
[1738680306977,0.03,215.34,215.24,37.81113247]
[1738680307182,0.12549,215.33,215.21,37.81113247]
[1738680307350,37.81113247,215.31,215.23,37.81113247]
[1738680307552,0.03,215.34,215.29,37.81113247]
[1738680307765,4.6738,215.34,215.27,37.81113247]
[1738680307949,0.03,215.34,215.29,37.81113247]
[1738680308152,0.03,215.34,215.3,13.53733853]
[1738680308378,0.03,215.34,215.33,37.93662247]
[1738680308559,0.0001,215.34,215.33,52.599451]
[1738680308756,0.03,215.44,215.38,0.12549]
[1738680308982,0.03,215.44,215.43,37.81113247]
[1738680309279,0.03,215.44,215.41,37.81113247]
[1738680309492,0.03,215.44,215.43,37.81113247]
[1738680309792,0.03,215.44,215.43,51.473961]
[1738680309955,0.03,215.44,215.39,37.81113247]
[1738680310154,37.81113247,215.43,215.35,37.81113247]
[1738680310355,0.52234358,215.42,215.33,37.81113247]
[1738680310556,37.81113247,215.43,215.35,37.81113247]
[1738680310979,0.03,215.44,215.37,37.81113247]
[1738680311162,0.03,215.44,215.43,37.93662247]
[1738680311967,0.03,215.54,215.44,18.30442853]
[1738680312180,0.03,215.54,215.49,13.66282853]
[1738680312396,0.03,215.54,215.53,51.473961]
[1738680312579,0.03,215.54,215.53,37.93662247]
[1738680312762,0.03,215.54,215.43,1.0]
[1738680312763,0.03,215.54,215.51,37.81113247]
[1738680313096,0.03,215.54,215.49,37.81113247]
[1738680313385,0.03,215.54,215.37,1.0]
[1738680313386,0.03,215.54,215.47,37.81113247]
[1738680313588,0.52234358,215.53,215.45,37.81113247]
[1738680313891,0.03,215.54,215.47,0.12549]
[1738680314099,0.03,215.54,215.48,37.81113247]
[1738680314276,37.81113247,215.51,215.42,37.81113247]
[1738680314477,37.81113247,215.49,215.4,37.81113247]
[1738680314899,37.81113247,215.49,215.41,0.12549]
[1738680315494,4.6408,215.48,215.4,37.81113247]
[1738680316290,37.81113247,215.47,215.4,37.81113247]
[1738680316488,4.6408,215.48,215.4,37.81113247]
[1738680316821,4.6695,215.54,215.47,37.81113247]
[1738680316999,4.6695,215.54,215.49,37.81113247]
[1738680317402,0.03,215.54,215.52,0.12549]
[1738680317601,0.03,215.54,215.53,37.81113247]
[1738680318096,0.03,215.54,215.51,37.81113247]
[1738680318492,0.03,215.54,215.49,37.81113247]
[1738680319213,0.03,215.54,215.47,37.81113247]
[1738680319417,38.36347605,215.54,215.45,37.81113247]
[1738680319717,37.81113247,215.5,215.41,37.81113247]
[1738680319937,38.33347605,215.5,215.41,37.81113247]
[1738680320535,38.45896605,215.52,215.43,37.81113247]
[1738680320742,0.03,215.48,215.4,4.6425]
[1738680320917,0.03,215.48,215.47,37.81113247]
[1738680321230,0.03,215.48,215.47,37.93662247]
[1738680321434,0.03,215.48,215.47,37.81113247]
[1738680321733,0.03,215.48,215.41,37.81113247]
[1738680321908,0.55234358,215.48,215.41,37.81113247]
[1738680322104,0.55234358,215.48,215.31,13.63007682]
[1738680322105,0.12549,215.46,215.39,37.81113247]
[1738680322330,37.81113247,215.43,215.35,37.81113247]
[1738680322504,37.81113247,215.43,215.24,11.6148]
[1738680322505,0.52234358,215.42,215.33,37.81113247]
[1738680322704,4.6423,215.41,215.35,37.81113247]
[1738680322936,37.81113247,215.43,215.36,0.12549]
[1738680323142,0.03,215.48,215.42,0.25098]
[1738680323315,0.03,215.48,215.46,37.81113247]
[1738680323709,0.03,215.48,215.47,0.12549]
[1738680324139,0.03,215.48,215.47,13.66282853]
[1738680324714,0.03,215.48,215.44,37.81113247]
[1738680324920,0.03,215.48,215.46,37.81113247]
[1738680325316,0.03,215.48,215.47,0.12549]
[1738680325519,0.03,215.48,215.44,37.81113247]
[1738680326120,37.81113247,215.47,215.38,37.81113247]
[1738680326424,37.81113247,215.43,215.34,37.81113247]
[1738680326622,37.93662247,215.41,215.32,37.81113247]
[1738680326823,37.81113247,215.35,215.28,37.81113247]
[1738680327127,37.81113247,215.35,215.25,0.063]
[1738680327128,37.81113247,215.31,215.25,0.063]
[1738680327324,38.33347605,215.37,215.28,37.81113247]
[1738680327531,4.6425,215.4,215.32,37.81113247]
[1738680327716,37.81113247,215.45,215.37,37.81113247]
[1738680327915,4.6415,215.45,215.37,37.81113247]
[1738680328132,37.81113247,215.39,215.31,37.81113247]
[1738680328545,0.12549,215.43,215.29,37.81113247]
[1738680328546,37.81113247,215.37,215.29,37.81113247]
[1738680328752,37.81113247,215.44,215.37,0.12549]
[1738680329050,4.641,215.47,215.4,37.81113247]
[1738680329345,37.81113247,215.42,215.34,37.81113247]
[1738680329547,4.641,215.47,215.4,37.81113247]
[1738680330051,0.03,215.48,215.44,37.81113247]
[1738680330249,0.03,215.48,215.47,0.25098]
[1738680330450,0.03,215.48,215.46,37.81113247]
[1738680330817,0.03,215.48,215.47,18.30382853]
[1738680331223,0.03,215.48,215.47,0.25098]
[1738680331520,0.03,215.56,215.48,13.53733853]
[1738680331740,0.03,215.56,215.53,51.473961]
[1738680332125,0.03,215.56,215.53,37.93662247]
[1738680332926,0.03,215.56,215.54,4.6395]
[1738680333140,0.03,215.56,215.55,37.81113247]
[1738680333841,0.03,215.56,215.55,38.06211247]
[1738680334158,0.03,215.56,215.55,51.473961]
[1738680334449,0.03,215.56,215.55,38.06211247]
[1738680334635,0.03,215.56,215.55,37.81113247]
[1738680334831,0.03,215.56,215.53,37.81113247]
[1738680335037,0.03,215.56,215.44,4.6415]
[1738680335242,0.03,215.56,215.54,37.81113247]
[1738680335642,0.03,215.56,215.52,37.81113247]
[1738680335830,0.12549,215.53,215.4,37.87413247]
[1738680336031,0.03,215.56,215.47,1.0]
[1738680336244,0.03,215.56,215.49,13.66282853]
[1738680336430,0.03,215.56,215.5,0.25098]
[1738680337034,0.03,215.56,215.55,37.81113247]
[1738680337229,0.03,215.56,215.55,37.93662247]
[1738680337552,0.03,215.56,215.55,51.473961]
[1738680337751,0.03,215.56,215.55,38.06211247]
[1738680337937,0.03,215.56,215.55,38.75789865]
[1738680338144,0.03,215.56,215.55,38.06211247]
[1738680338342,0.03,215.66,215.56,13.66282853]
[1738680338536,0.03,215.66,215.62,37.81113247]
[1738680338736,4.6375,215.63,215.56,37.81113247]
[1738680338957,37.81113247,215.64,215.56,37.81113247]
[1738680339144,0.03,215.66,215.58,37.81113247]
[1738680339340,4.6671,215.66,215.6,37.81113247]
[1738680339758,43.00057605,215.66,215.58,37.81113247]
[1738680339933,37.81113247,215.64,215.56,37.81113247]
[1738680340557,37.81113247,215.62,215.54,37.81113247]
[1738680340741,42.44983247,215.58,215.5,37.81113247]
[1738680341069,37.81113247,215.56,215.48,37.81113247]
[1738680341275,42.44943247,215.6,215.52,37.81113247]
[1738680341555,4.6383,215.6,215.54,37.81113247]
[1738680341761,4.6383,215.6,215.49,13.41184853]
[1738680341762,42.44943247,215.6,215.52,37.81113247]
[1738680341965,37.81113247,215.58,215.5,37.81113247]
[1738680342333,37.81113247,215.58,215.51,0.12549]
[1738680342738,37.81113247,215.54,215.45,37.81113247]
[1738680342938,37.81113247,215.48,215.4,18.626694]
[1738680343135,37.81113247,215.44,215.4,0.063]
[1738680343351,37.81113247,215.42,215.4,0.063]
[1738680343547,0.64783358,215.41,215.4,0.063]
[1738680343752,37.81113247,215.42,215.4,0.063]
[1738680344057,0.12549,215.43,215.4,0.063]
[1738680344263,38.33347605,215.44,215.4,0.063]
[1738680344475,38.33347605,215.48,215.4,37.87413247]
[1738680344640,37.81113247,215.48,215.4,37.87413247]
[1738680344832,0.12549,215.46,215.4,0.063]
[1738680345036,4.641,215.47,215.4,0.063]
[1738680345266,38.33347605,215.46,215.4,0.063]
[1738680345438,37.81113247,215.46,215.4,0.063]
[1738680345760,4.641,215.47,215.4,0.063]
[1738680346189,37.81113247,215.46,215.4,0.063]
[1738680346462,37.81113247,215.42,215.4,0.063]
[1738680347174,16.77034358,215.41,215.29,37.81113247]
[1738680347462,37.81113247,215.39,215.31,37.81113247]
[1738680347642,37.81113247,215.37,215.29,37.81113247]
[1738680347843,0.12549,215.36,215.27,37.81113247]
[1738680348168,37.81113247,215.37,215.29,37.81113247]
[1738680348335,37.81113247,215.35,215.27,37.81113247]
[1738680348740,0.12549,215.34,215.25,37.87413247]
[1738680348970,4.6438,215.34,215.28,37.81113247]
[1738680349168,4.6435,215.36,215.28,37.81113247]
[1738680349366,4.6435,215.36,215.3,37.81113247]
[1738680349667,4.6435,215.36,215.28,37.81113247]
[1738680349876,11.6051,215.43,215.32,37.81113247]
[1738680349877,4.6427,215.39,215.32,37.81113247]
[1738680350082,42.97587605,215.41,215.32,37.81113247]
[1738680350586,37.81113247,215.37,215.28,37.81113247]
[1738680350747,4.642,215.43,215.34,37.81113247]
[1738680351077,0.52234358,215.47,215.37,37.81113247]
[1738680351078,42.45253247,215.45,215.37,37.81113247]
[1738680351288,42.45253247,215.45,215.33,37.81113247]
[1738680351289,0.12549,215.4,215.33,37.81113247]
[1738680351574,37.81113247,215.37,215.29,37.81113247]
[1738680351780,37.81113247,215.37,215.3,0.12549]
[1738680352086,42.97487605,215.45,215.35,37.81113247]
[1738680352380,37.81113247,215.41,215.33,37.81113247]
[1738680352778,0.52234358,215.43,215.31,37.81113247]
[1738680352779,37.81113247,215.39,215.31,37.81113247]
[1738680352986,37.81113247,215.37,215.29,37.81113247]
[1738680353166,37.81113247,215.31,215.25,0.063]
[1738680353475,37.81113247,215.35,215.27,37.81113247]
[1738680353649,37.81113247,215.29,215.25,0.063]
[1738680354051,37.81113247,215.27,215.25,0.063]
[1738680354252,0.52234358,215.26,215.25,0.063]
[1738680354877,37.81113247,215.29,215.25,0.063]
[1738680355390,37.81113247,215.27,215.25,0.063]
[1738680355686,0.64783358,215.26,215.25,0.0001]
[1738680355884,0.64783358,215.26,215.17,0.063]
[1738680355885,1.25098,215.23,215.17,0.063]
[1738680356098,37.93662247,215.19,215.17,0.063]
[1738680356889,4.77269,215.18,215.17,0.0001]
[1738680357980,0.25098,215.14,215.08,0.063]
[1738680358190,39.81113247,215.09,215.03,0.063]
[1738680358356,37.81113247,215.04,215.03,0.063]
[1738680358562,38.33347605,215.08,215.03,0.063]
[1738680358856,0.12549,215.05,215.03,0.063]
[1738680359058,38.45896605,215.04,215.03,0.063]
[1738680359281,0.52234358,215.05,215.03,0.063]
[1738680360169,0.12549,215.0,214.96,0.063]
[1738680360366,0.12549,215.0,214.82,37.81113247]
[1738680360367,0.25098,214.96,214.82,37.81113247]
[1738680360691,57.81113247,214.88,214.79,37.81113247]
[1738680360870,57.81113247,214.88,214.72,49.45413247]
[1738680360871,37.81113247,214.8,214.72,37.81123247]
[1738680361075,37.81113247,214.78,214.72,0.0001]
[1738680361279,57.81113247,214.76,214.72,0.0001]
[1738680361458,134.92549,214.75,214.72,0.0001]
[1738680361659,134.8,214.74,214.72,0.0001]
[1738680362080,134.8,214.74,214.72,37.81123247]
[1738680362287,134.8,214.8,214.72,37.81123247]
[1738680362487,134.8,214.79,214.77,37.81113247]
[1738680362692,140.46,214.85,214.77,37.81113247]
[1738680362996,140.46,214.85,214.72,42.46823247]
[1738680362997,5.66,214.85,214.79,37.81113247]
[1738680363364,82.9,214.86,214.83,37.81113247]
[1738680363558,134.8,214.87,214.81,37.81113247]
[1738680363759,0.12549,214.86,214.81,37.81113247]
[1738680363983,38.45896605,214.86,214.77,37.81113247]
[1738680364185,134.8,214.85,214.81,37.81113247]
[1738680364385,134.8,214.85,214.83,37.81113247]
[1738680364589,134.8,214.93,214.83,37.81113247]
[1738680364795,135.32234358,214.92,214.85,37.81113247]
[1738680365021,0.12549,214.87,214.79,37.81113247]
[1738680365319,0.12549,214.87,214.81,37.81113247]
[1738680365320,134.8,214.87,214.81,37.81113247]
[1738680365483,37.81113247,214.92,214.83,37.81113247]
[1738680365683,0.12549,214.89,214.79,37.81113247]
[1738680365908,37.81113247,214.88,214.79,37.81113247]
[1738680366104,37.81113247,214.9,214.83,37.81113247]
[1738680366312,134.8,214.91,214.83,37.81113247]
[1738680366524,134.8,214.91,214.74,2.69830875]
[1738680366707,4.77829,214.93,214.84,37.81113247]
[1738680366708,134.8,214.9,214.84,37.81113247]
[1738680367021,0.12549,214.84,214.76,37.81113247]
[1738680367216,135.32234358,214.84,214.76,37.81113247]
[1738680367410,172.73662247,214.83,214.74,37.81113247]
[1738680367601,37.93662247,214.81,214.72,37.81123247]
[1738680367806,37.93662247,214.79,214.72,0.0001]
[1738680367996,37.93662247,214.73,214.72,0.0001]
[1738680368390,0.12549,214.73,214.72,0.0001]
[1738680368595,134.8,214.75,214.72,37.81123247]
[1738680368792,134.8,214.75,214.72,0.0001]
[1738680368998,38.45896605,214.74,214.72,0.0001]
[1738680369293,135.05098,214.73,214.72,0.0001]
[1738680369705,0.12549,214.73,214.72,0.0001]
[1738680369998,1.12549,214.73,214.72,0.0001]
[1738680370312,0.25098,214.73,214.72,0.0001]
[1738680370824,18.31982853,214.73,214.72,0.0001]
[1738680371115,0.52234358,214.77,214.72,0.0001]
[1738680371430,42.98947605,214.78,214.72,0.0001]
[1738680371593,0.12549,214.77,214.72,0.0001]
[1738680371794,0.52234358,214.76,214.72,0.0001]
[1738680372028,0.52234358,214.78,214.72,37.81123247]
[1738680372228,82.9,214.89,214.77,37.81113247]
[1738680372229,37.81113247,214.86,214.77,37.81113247]
[1738680372396,4.654,214.87,214.79,37.81113247]
[1738680372600,38.33347605,214.86,214.79,37.81113247]
[1738680372908,42.46363247,214.94,214.85,37.81113247]
[1738680373107,37.81113247,214.92,214.83,37.81113247]
[1738680373306,37.81113247,214.86,214.77,37.81113247]
[1738680373503,0.12549,214.78,214.72,0.0001]
[1738680373719,0.12549,214.76,214.72,0.0001]
[1738680373922,134.8,214.77,214.72,37.81123247]
[1738680374126,0.64783358,214.76,214.72,0.0001]
[1738680374303,172.61113247,214.75,214.72,0.0001]
[1738680374498,0.52234358,214.74,214.72,0.0001]
[1738680374731,58.06211247,214.73,214.72,0.0001]
[1738680374903,76.130961,214.73,214.72,0.0001]
[1738680375110,4.78249,214.73,214.72,0.0001]
[1738680375312,134.8,214.78,214.72,0.0001]
[1738680375512,135.32234358,214.77,214.72,0.0001]
[1738680375737,0.12549,214.76,214.72,0.0001]
[1738680375939,134.8,214.81,214.74,37.81113247]
[1738680376247,0.15,214.91,214.76,37.81113247]
[1738680376248,177.26563247,214.85,214.76,37.81113247]
[1738680376442,135.32234358,214.84,214.76,37.81113247]
[1738680376610,134.8,214.84,214.76,37.81113247]